Cogmind - Beta 16 @@@ ROGUE MODE // 2025.10.27 @ 21:59:16 Player: Big Jerry Result: Destroyed by Piercing Trap Performance ------------- Evolutions (0) 0 Regions Visited (3) 600 Robots Destroyed (32) 160 Value Destroyed (797) 797 Prototype IDs (2) 40 Alien Tech Used (0) 0 Bonus (0) 0 TOTAL SCORE: 1597 Bonus ------- None Cogmind --------- Core Integrity 0/250 Matter 110/300 Energy 96/100 System Corruption 1% Temperature Cool (2) Movement Walking (190) Ox1 Location -10/Subcaves Parts ------- > --- POWER (1) -------- (None) > --- PROPULSION (2) --- Aluminum Leg Aluminum Leg > --- UTILITY (2) ------ Large Storage Unit Hardened Light Armor Plating > --- WEAPON (2) ------- Medium Laser Particle Gun > --- INVENTORY (15) --- Aluminum Leg Structural Scanner Signal Interpreter Signal Interpreter ECM Suite Hardened Light Armor Plating Hardened Light Armor Plating Medium Laser Light Assault Rifle Subdweller Machine Gun Grenade Launcher Makeshift Axe Peak State ------------ > --- POWER ------------ Ion Engine > --- PROPULSION ------- Aluminum Leg Aluminum Leg > --- UTILITY ---------- Large Storage Unit Hardened Light Armor Plating > --- WEAPON ----------- Particle Gun Subdweller Shrapnel Launcher > --- INVENTORY -------- Aluminum Leg Structural Scanner Signal Interpreter Signal Interpreter ECM Suite Hardened Light Armor Plating Hardened Light Armor Plating Hardened Light Armor Plating Medium Laser Medium Laser Beam Cannon Light Assault Rifle Grenade Launcher Makeshift Axe [Rating: 12] Favorites ----------- Power Ion Engine Engine Ion Engine Propulsion Light Treads Treads Light Treads Leg Aluminum Leg Utility Large Storage Unit Device Structural Scanner Storage Large Storage Unit Protection Hardened Light Armor Plating Weapon Beam Cannon Energy Gun Medium Laser Energy Cannon Beam Cannon Ballistic Gun Assault Rifle Launcher Grenade Launcher Special Weapon Mining Laser Build | -11 -10 -10 -10 ------- Run | Yrd Mat Min Sub Slots Evolved . | . . . . Power . | . . . . Propulsion . | . . . . Utility . | . . . . Weapon . | . . . . Parts Attached 28 | 9 12 4 3 Power 3 | 1 2 . . Engine 3 | 1 2 . . Core . | . . . . Reactor . | . . . . Propulsion 6 | 4 1 1 . Treads 3 | 2 1 . . Leg 3 | 2 . 1 . Wheel . | . . . . Hover . | . . . . Flight . | . . . . Utility 5 | 1 3 . 1 Device 1 | . 1 . . Storage 2 | 1 1 . . Processor . | . . . . Hackware . | . . . . Protection 2 | . 1 . 1 Artifact . | . . . . Weapon 14 | 3 6 3 2 Energy Gun 5 | 2 1 1 1 Energy Cannon 1 | . 1 . . Ballistic Gun 3 | 1 1 1 . Ballistic Cannon . | . . . . Launcher 2 | . . 1 1 Special Weapon 3 | . 3 . . Impact Weapon . | . . . . Slashing Weapon . | . . . . Piercing Weapon . | . . . . Special Melee Weapon . | . . . . Unidentified Prototypes . | . . . . Parts Lost 7 | . 2 1 4 Power 2 | . 1 . 1 Propulsion 2 | . 1 1 . Utility 1 | . . . 1 Weapon 2 | . . . 2 Highest Loss Streak 3 | . 1 1 3 To Critical Strikes . | . . . . Average Backups 11 | 2 9 13 13 Power . | . . . . Propulsion 1 | 1 2 . 1 Utility 5 | . 3 7 6 Weapon 4 | . 3 6 5 Tool/Special . | . . . . Unused Backups 8 | . 1 . 7 Power . | . . . . Propulsion . | . . . . Utility 5 | . . . 5 Weapon 3 | . 1 . 2 Tool/Special . | . . . . Average Slot Usage (%) 97 | . 97 100 96 Engine 12 | . 14 14 10 Treads 14 | . 27 7 . Leg 13 | . . 20 28 Device 3 | . 7 . . Storage 14 | . 14 14 14 Protection 9 | . 4 14 14 Energy Gun 11 | . 14 7 9 Energy Cannon 9 | . 5 10 13 Ballistic Gun 3 | . 5 6 . Special Weapon 2 | . 2 . 4 Peak Build Rating 12 | 6 9 11 12 Average Rating 8 | 4 7 9 10 On Entrance 6 | . 6 9 11 Avg Prop Armor Cover (%) . | . . . . Naked Turns . | . . . . Heaviest Build 41 | 12 35 36 41 Greatest Support 40 | 40 40 40 20 Greatest Overweight (x) 2 | . . 1 2 Average Overweight (x) . | . . . 1 Largest Inventory Capacity 15 | 8 15 15 15 Average Capacity 13 | 6 12 15 15 Most Carried 15 | 4 15 15 14 Average Carried 11 | 2 9 13 13 Final Capacity 15 | 8 15 15 15 Final Carried 15 | 4 15 14 12 Class Distribution -------------------- 100% | Mutant Dominant Class ---------------- Mutant | -10/Materials Mutant | -10/Mines Mutant | -10/Subcaves Resources | -11 -10 -10 -10 ----------- Run | Yrd Mat Min Sub Matter Collected 714 | 230 309 126 49 Remotely . | . . . . Salvage Created 787 | . 544 88 155 Parts 51 | . 35 4 12 Haulers Intercepted 1 | . 1 . . Recyclers Shooed 1 | . 1 . . Parts Field Recycled . | . . . . Retrieved Matter . | . . . . Parts Self-Destructed 6 | . . . 6 Prevented . | . . . . Parts Restored . | . . . . Kills | -11 -10 -10 -10 ------- Run | Yrd Mat Min Sub Combat Hostiles Destroyed 25 | . 17 3 5 Guns 13 | . 11 1 1 Cannons 9 | . 6 2 1 AOE 3 | . . . 3 Classes Destroyed 10 | . 7 1 2 Worker 1 | . 1 . . Hauler 1 | . 1 . . Recycler 1 | . 1 . . Operator 2 | . 2 . . Watcher 2 | . 2 . . Swarmer 9 | . 9 . . Grunt 10 | . 8 2 . Sentry 1 | . . . 1 Demolisher 1 | . . 1 . Subdweller 4 | . . . 4 Best Kill Streak 5 | . 5 2 4 Combat Bots Only 4 | . 3 2 4 Max Kills in Single Turn 1 | . 1 1 1 Gunslinging . | . . . . Exploded 1 | . . . 1 Melee . | . . . . Uniques/NPCs Destroyed . | . . . . Combat | -11 -10 -10 -10 -------- Run | Yrd Mat Min Sub Hostile Shots Fired 109 | . 82 13 14 Missed 21 | . 15 3 3 Hits 88 | . 67 10 11 Projectile 88 | . 67 10 11 AOE 5 | . . 5 . Critical Strikes 1 | . 1 . . Damage Taken 1503 | . 797 251 455 Core 252 | . 176 48 28 Absorbed by Shields . | . . . . Core Remaining (%) 100 | 100 . . . Volleys Fired 127 | . 76 11 40 Largest 2 | . 2 2 2 Hottest 150 | . 150 80 125 Shots Fired 216 | . 144 21 51 Gun 122 | . 100 11 11 Cannon 37 | . 25 10 2 Launcher 9 | . . . 9 Special 48 | . 19 . 29 Kinetic 53 | . 36 10 7 Thermal 161 | . 108 11 42 Explosive 2 | . . . 2 Electromagnetic . | . . . . Robot Hit Streak 13 | . 12 13 9 Robot Miss Streak 7 | . 7 1 1 Penetration Max . | . . . . Secondary Targets 1 | . 1 . . Max Gunslinging Chain 1 | . 1 . . Shots Hit Robots 104 | . 75 13 16 Core Hits 41 | . 28 4 9 Critical Kills . | . . . . Critical Parts Destroyed . | . . . . Critical Strikes 1 | . 1 . . Burn 1 | . 1 . . Melee Attacks . | . . . . Impact . | . . . . Slashing . | . . . . Piercing . | . . . . Sneak Attacks . | . . . . Combat Hostiles . | . . . . Follow-up Attacks . | . . . . Damage Inflicted 1970 | . 1163 194 613 Guns 896 | . 710 88 98 Cannons 350 | . 228 104 18 Explosions 497 | . . . 497 Melee . | . . . . Ramming 11 | . 9 2 . Kinetic 697 | . 246 76 375 Thermal 1140 | . 908 116 116 Explosive 122 | . . . 122 Electromagnetic . | . . . . Impact . | . . . . Slashing . | . . . . Piercing . | . . . . Highest Corruption 1 | . 1 1 1 Average Corruption 1 | . 1 1 1 Corruption Purged . | . . . . Corruption Blocked . | . . . . Effects 20 | . 10 3 7 Message Errors 1 | . 1 . . Matter Fused 6 | . 2 1 3 Heat Flow Errors 3 | . 1 1 1 Energy Discharges 7 | . 3 1 3 Data Loss (minor) 1 | . 1 . . Misfires 2 | . 2 . . Overload Shots . | . . . . Overflow Damage 41 | . 21 . 20 Projectiles 21 | . 21 . . Explosions 20 | . . . 20 Melee . | . . . . Knockbacks . | . . . . Impact . | . . . . Kinetic . | . . . . Secondary . | . . . . Self-Inflicted Damage 16 | . . . 16 Shots 1 | . . . 1 Rammed 4 | . 3 1 . Targets Rammed 5 | . 4 1 . Kicked . | . . . . Crushed 1 | . 1 . . Highest Temperature 342 | . 342 240 260 Average Temperature 93 | . 95 94 49 Received Heat Transfer 306 | . 228 42 36 Effects 1 | . 1 . . Energy Bleed 1 | . 1 . . Siege Activations . | . . . . Martial Activations . | . . . . Shielding Activations . | . . . . Robots Disrupted . | . . . . Combat Hostiles . | . . . . Robots Corrupted . | . . . . Combat Hostiles . | . . . . Parts Fried . | . . . . Impact Corruptions . | . . . . Robots Melted . | . . . . Combat Hostiles . | . . . . Parts Melted 6 | . 4 2 . Heat Transferred 2892 | . 2374 259 259 Parts Sabotaged . | . . . . Parts Stolen . | . . . . Parts Stripped . | . . . . Power Chain Reactions . | . . . . Alert | -11 -10 -10 -10 ------- Run | Yrd Mat Min Sub Maximum Alert Level . | . . . . Low Security (%) 100 | 100 100 100 . Level 1 . | . . . . Level 2 . | . . . . Level 3 . | . . . . Level 4 . | . . . . Level 5 . | . . . . High Security . | . . . . Max Security . | . . . . Peak Influence 140 | . 140 43 . Initial 43 | . . 43 . Average 43 | . 54 12 . Influence Increases 736 | . 606 110 20 Destroy 0b10 Robot/C 420 | . 340 60 20 Destroy 0b10 Robot/NC 35 | . 35 . . Destroy Leader 106 | . 86 20 . Successful Hack 26 | . 26 . . Disable Machine 15 | . 15 . . Destroy Structure 14 | . 14 . . Lose Combat Pursuer 120 | . 90 30 . Influence Decreases 736 | . 495 221 20 Entered New Map 68 | . . 68 . Time Decay 638 | . 475 143 20 Lost Part 30 | . 20 10 . Squads Dispatched 4 | . 4 . . Investigation 2 | . 2 . . Extermination . | . . . . Reinforcement 2 | . 2 . . Assault . | . . . . Garrison . | . . . . Intercept . | . . . . Searches Triggered . | . . . . Construction Impeded . | . . . . Haulers Reinforced . | . . . . Active Scanning Responses . | . . . . Cargo Convoy Interrupts . | . . . . Stealth | -11 -10 -10 -10 --------- Run | Yrd Mat Min Sub Distress Signals 3 | . 3 . . Communications Jammed . | . . . . Distress Signals . | . . . . Times Spotted 41 | . 33 4 4 Peak Tracking Total 4 | . 4 2 2 Tactical Retreats 6 | . 4 2 . Traps | -11 -10 -10 -10 ------- Run | Yrd Mat Min Sub Traps Triggered 6 | . 2 . 4 Indirectly . | . . . . Trap Hack Attempts . | . . . . Triggered . | . . . . Disarmed . | . . . . Reprogrammed . | . . . . Reused . | . . . . Traps Extracted . | . . . . Installed . | . . . . Triggered . | . . . . Machines | -11 -10 -10 -10 ---------- Run | Yrd Mat Min Sub Machines Disabled 1 | . 1 . . Max in Single Turn 1 | . 1 . . Machines Repaired . | . . . . Machines Dismantled . | . . . . Machines Sabotaged . | . . . . Overloaded Fab Kills . | . . . . Hacking | -11 -10 -10 -10 --------- Run | Yrd Mat Min Sub Machines Accessed 7 | . 7 . . Terminals 7 | . 7 . . Fabricators . | . . . . Repair Stations . | . . . . Recycling Units . | . . . . Scanalyzers . | . . . . Garrison Access . | . . . . Total Hacks 18 | . 18 . . Successful 9 | . 9 . . Failed 9 | . 9 . . Catastrophic . | . . . . Database Lockouts . | . . . . Manual . | . . . . Terminals 18 | . 18 . . Fabricators . | . . . . Repair Stations . | . . . . Recycling Units . | . . . . Scanalyzers . | . . . . Garrison Access . | . . . . Terminal Hacks 9 | . 9 . . Robot Analysis 1 | . 1 . . Prototype ID Bank 1 | . 1 . . Locate Traps 1 | . 1 . . Transport Status 1 | . 1 . . Hauler Manifests 1 | . 1 . . Registered Components 1 | . 1 . . Registered Prototypes 1 | . 1 . . Zone Layout 2 | . 2 . . Fabricator Hacks . | . . . . Repair Station Hacks . | . . . . Recycling Unit Hacks . | . . . . Scanalyzer . | . . . . Garrison Access Hacks . | . . . . Unauthorized Hacks . | . . . . Terminals . | . . . . Fabricators . | . . . . Repair Stations . | . . . . Recycling Units . | . . . . Scanalyzers . | . . . . Garrison Access . | . . . . Data Cores Recovered . | . . . . Used . | . . . . Hacking Detections 5 | . 5 . . Full Trace Events 2 | . 2 . . Feedback Events . | . . . . Feedback Blocked . | . . . . Robot Schematics Acquired . | . . . . Robots Built . | . . . . Authchips . | . . . . Time . | . . . . Total Robot Build Rating . | . . . . Part Schematics Acquired . | . . . . Parts Built . | . . . . Authchips . | . . . . Time . | . . . . Total Part Build Rating . | . . . . Part Studies Acquired . | . . . . Parts Repaired . | . . . . Time . | . . . . Parts Recycled . | . . . . Recycled Matter . | . . . . Retrieved Matter . | . . . . Retrieved Components . | . . . . Parts Scanalyzed . | . . . . Part Schematics Acquired . | . . . . Parts Damaged . | . . . . Bothacking | -11 -10 -10 -10 ------------ Run | Yrd Mat Min Sub Used RIF Installer . | . . . . Robots Hacked . | . . . . Non-combat . | . . . . Combat . | . . . . Robot Hacks Applied . | . . . . Relay Couplers Released . | . . . . Fabnet Peak Effective % . | . . . . Robots Rewired . | . . . . Allies Hacked . | . . . . Hacks Repelled . | . . . . Allies | -11 -10 -10 -10 -------- Run | Yrd Mat Min Sub Total Allies . | . . . . Largest Group . | . . . . Highest-Rated Group . | . . . . Highest-Rated Ally . | . . . . Total Orders . | . . . . Ally Attacks . | . . . . Total Damage . | . . . . Kills . | . . . . Allies Corrupted . | . . . . Allies Melted . | . . . . Intel | -11 -10 -10 -10 ------- Run | Yrd Mat Min Sub Active Infowar (turns) 906 | . 906 . . Structural 906 | . 906 . . Robot Analysis Total 1 | . 1 . . Derelict Logs Recovered 1 | . . 1 . Drone Launches . | . . . . Drone Recoveries . | . . . . Exploration | -11 -10 -10 -10 ------------- Run | Yrd Mat Min Sub Turns Passed 3366 | 67 1569 489 1241 Spaces Moved 1636 | 39 786 244 567 Core 7 | 7 . . . Treads 875 | 25 786 64 . Legs 754 | 7 . 180 567 Wheels . | . . . . Hover . | . . . . Flight . | . . . . Fastest Speed 50 | 50 160 160 190 Average Speed 173 | 133 160 182 190 Slowest Speed 260 | 160 160 190 260 Overloaded Moves . | . . . . Propulsion Burnouts . | . . . . Robots Hopped . | . . . . Potential Cave-ins . | . . . . Cave-ins Triggered . | . . . . Exploration Rate (%) 46 | 4 93 61 28 Regions Visited 3 Branch Regions 2 Pre-discovered Areas . | . . . . Known Exits Taken . | . . . . Unknown Exits Taken 3 | 1 1 1 . Scrap Searched 1 | . . 1 . Spaces Dug 3 | . 3 . . Terrain Destroyed 85 | . 9 . 76 Melee . | . . . . Projectile 9 | . 9 . . AOE 76 | . . . 76 Terrain Rammed . | . . . . Walls Destroyed . | . . . . Machines Disabled . | . . . . Actions | -11 -10 -10 -10 --------- Run | Yrd Mat Min Sub Total 1844 | 51 912 265 616 Wait 9 | . 9 . . Move 1633 | 38 785 243 567 Hop . | . . . . Pick Up 18 | 2 14 1 1 Fast Attach 10 | 8 2 . . Attach 6 | . 2 1 3 Detach 3 | 2 1 . . Swap 25 | 1 13 6 5 Drop 8 | . 6 2 . Fire 127 | . 76 11 40 Melee . | . . . . Ram . | . . . . Kick . | . . . . Crush 5 | . 4 1 . Escape Stasis . | . . . . Rewire . | . . . . Trap . | . . . . Miscellaneous . | . . . . Route ------- -11/Scrapyard -10/Materials (discovered 4 exits: *Mat x2 / [*Min] / [*Sub]) -10/Mines (discovered 3 exits: *Mat x2 / [*Sub]) -10/Subcaves History --------- Turn | Location | Event 17 | -11/Scrapyard | Discovered new exit (range 16) 68 | -11/Scrapyard | Entered Materials 176 | -10/Materials | Discovered new exit (range 6) 225 | -10/Materials | Discovered new exit (range 15) 314 | -10/Materials | Build established: Mutant 314 | -10/Materials | Discovered new exit (range 5) 934 | -10/Materials | Core integrity fell below 50% 1109 | -10/Materials | Discovered new exit (range 14) 1637 | -10/Materials | Entered Mines 1638 | -10/Mines | Assembled infested the area 1643 | -10/Mines | Assisted by a Guerilla fighting off Assembled 1655 | -10/Mines | A weapon hastily lodged in a ceiling crevice suddenly fell to the ground 1793 | -10/Mines | Discovered new exit (range 12) 1901 | -10/Mines | Identified exit to Materials 1972 | -10/Mines | Core integrity fell below 20% 2101 | -10/Mines | Discovered new exit (range 15) 2126 | -10/Mines | Entered Subcaves 2332 | -10/Subcaves | A swath of the cavern ceiling suddenly collapsed 3091 | -10/Subcaves | Ambushed by Subdweller buried in earth 3126 | -10/Subcaves | Lost 3 parts (1p1u1w) 3367 | -10/Subcaves | Destroyed by Piercing Trap Last Messages --------------- IZ-RDD(R) destroyed. NS-MB2(R) destroyed. The unstable cave ceiling collapses. Subatomizers dissect the Sub. Optics. The unstable cave ceiling collapses. Acquired 42 matter. The unstable cave ceiling collapses. Acquired 7 matter. Acquired Sub. Machine Gun. System corrupted: Heat flow error (+298). System corrupted: Matter fused (-5). Triggered Piercing Trap. Spikes shoot up from the floor. Critical hit (Impale). Triggered Shrapnel Trap. An expanding cloud of shrapnel blasts out in all directions. Beam Cannon destroyed. Triggered Piercing Trap. Spikes shoot up from the floor. Map ----- +----------------------------------------------------+ | ?????## ## ## #??????????????? | | ??????###?##### ## ### ##??????????????? | | ??????????????#######?# #####???????????????? | | ??????????????????????# ##???????????????????? | | ??????????????????????## ##????????????????????? | | ???????????????????????# ########??????????????? | | ???????????????????????### ##?????????????? | | ?????????????????????????## #?????????????? | | ?????????????????????????## #?????????????? | | ????????????????????????## ##?????????????? | | ????????????????????????# ##??????????????? | | ???????????????????????## ## ##???????????????? | | ??????????????????????## ## #????????????????? | | ??????????????????????# ####?????????????? | | ??????????????????????# #?????????????? | | ??????????????????????# #?????????????? | | ??????????????????????# #?????????????? | | ?????????????????????## ###### #?????????????? | | ????????????????????## ########?????????????? | | ????????????????????# # # ##?????????????? | | ????????????????????## # #?????????????? | | ????????????????????# ### #?????????????? | | ????????????????????# #### # ##?????????????? | | ????????????????????# ###### #?????????????? | | ????????????????????## ##??## ##?????????????? | | ?????????????????????# @ #???# #?????????????? | | ?????????????????????# #???# ##?????????????? | | ?????????????????????#### ##### #??????????????? | | ???????????????????????## "# ##?????????????? | | ???????????????????##### #?????????????? | | ??????????####???### ^ ^ "#?????????????? | | ??????????# ##?## "##?????????????? | | ??????????# ### "#??????????????? | | ??????????# """ ^ #??????????????? | | ?????????## #??????????????? | | ?????????# #### ##??????????????? | | ????????# #??### ##??????????????? | | ????????# #????### #??????????????? | | ????????### "###??????## #??????????????? | | ??????????########?????????## ####??????????????? | | ???????????????????????????## #????????????????? | | ???????????????????????????# ##????????????????? | | ???????????????????????????# ##????????????????? | | ???????????????????????????# #????????????????? | | ???????????????????????????# ##????????????????? | | ???????????????????????????## #?????????????????? | | ???????????????????????????# #?????????????????? | | ???????????????????????????# ##?????????????????? | | ???????????????????????????# #??????????????????? | | ???????????????????????????## #??????????????????? | +----------------------------------------------------+ Best States ------------- Heat Dissipation 25 Energy Generation 10 Energy Capacity 250 Matter Stores 300 Matter Capacity 300 Sight Range 16 Terrain Scan Density 10 Armor Coverage 150 Evasion (%) 45 Recoil Reduction 2 Item Schematics ----------------- None Robot Schematics ------------------ None Fabricated ------------ Nothing Repaired ---------- Nothing Studied --------- None Alien Tech Used ----------------- None Achievements -------------- None Challenges ------------ None Game ------ Seed MetafiberAntigravFocus Manual? 0 Play Time 00:25:11 Cumulative 41.6 hours Start 2025.10.27 @ 21:35:35 End 2025.10.27 @ 21:59:16 Sessions 1 Manual Loads 0 Difficulty Rogue Special Mode None Game No. 52 Rogue 52 Adventurer 0 Explorer 0 Win Type - Total 0 Types 0/0/0/0/0/0/0/0/0/0 Lore% 29 Gallery% 26 Achievement% 18 Wizard Run 0 Options --------- Layout 1 ASCII 0 Keyboard 0 Movement Numpad Keybinds 0 Fullscreen 1 Font 24/Swanston Map View 50x35 Zoom Use 0% Tactical HUD 0 Map Filters NONE Filters NONE Steam 1 RUN: 0828e8ac-ae62-44b3-9e5e-357bdd2c68bc